bitfinex/quotes_BTCUSD_20240727
["timestamp","ask_amount","ask_price","bid_price","bid_amount"]
[1722041576406,0.17630653,68047.0,68046.0,1.081765]
[1722041576674,0.1756389,68047.0,68046.0,1.081765]
[1722041576804,0.17630653,68047.0,68046.0,1.081765]
[1722041577252,0.0996389,68047.0,68046.0,1.081765]
[1722041577421,0.00829,68047.0,68046.0,1.143065]
[1722041578628,0.00829,68047.0,68046.0,1.436983]
[1722041578945,0.01973924,68047.0,68046.0,1.436983]
[1722041579139,0.01973924,68047.0,68046.0,1.143065]
[1722041579340,0.04279907,68047.0,68046.0,1.143065]
[1722041580109,0.04279907,68047.0,68046.0,1.436983]
[1722041584705,0.01973924,68047.0,68046.0,1.436983]
[1722041587786,0.04279907,68047.0,68046.0,1.436983]
[1722041588195,0.11108814,68047.0,68046.0,1.436983]
[1722041588594,0.01973924,68047.0,68046.0,1.436983]
[1722041588850,0.11108814,68047.0,68046.0,1.436983]
[1722041589209,0.01973924,68047.0,68046.0,1.436983]
[1722041589609,0.00829,68047.0,68046.0,1.436983]
[1722041590962,0.01973926,68047.0,68046.0,1.436983]
[1722041591730,0.03134983,68047.0,68046.0,1.436983]
[1722041592136,0.12269873,68047.0,68046.0,1.436983]
[1722041592806,0.00829,68047.0,68046.0,1.436983]
[1722041594198,0.00829,68047.0,68046.0,1.408983]
[1722041594400,0.0197391,68047.0,68046.0,1.408983]
[1722041594567,0.00829,68047.0,68046.0,1.436983]
[1722041594764,0.00829,68047.0,68046.0,1.143065]
[1722041594977,0.00829,68047.0,68046.0,1.129065]
[1722041595602,0.0996389,68047.0,68046.0,1.143065]
[1722041595802,0.00829,68047.0,68046.0,1.129065]
[1722041596180,0.00829,68047.0,68046.0,1.436983]
[1722041596383,0.00829,68047.0,68046.0,1.422983]
[1722041596590,0.01973903,68047.0,68046.0,1.422983]
[1722041596789,0.01973903,68047.0,68046.0,1.436983]
[1722041597077,0.01973903,68047.0,68046.0,1.422983]
[1722041597308,0.01973903,68047.0,68046.0,1.436983]
[1722041601315,0.04279886,68047.0,68046.0,1.436983]
[1722041601517,0.01973903,68047.0,68046.0,1.436983]
[1722041606333,0.01973903,68047.0,68046.0,1.143065]
[1722041606734,0.00895763,68047.0,68046.0,1.143065]
[1722041607250,0.00895763,68047.0,68046.0,1.436983]
[1722041607654,0.00895763,68047.0,68046.0,1.143065]
[1722041607838,0.00895763,68047.0,68046.0,1.436983]
[1722041608039,0.00895763,68047.0,68046.0,1.143065]
[1722041608351,0.11046137,68047.0,68046.0,1.143065]
[1722041609037,0.00895763,68047.0,68046.0,1.143065]
[1722041609269,0.03201746,68047.0,68046.0,1.143065]
[1722041609475,0.00895763,68047.0,68046.0,1.143065]
[1722041610398,0.11046137,68047.0,68046.0,1.143065]
[1722041611792,0.18826137,68047.0,68046.0,1.081765]
[1722041612229,0.2113212,68047.0,68046.0,1.081765]
[1722041614222,0.27753745,68047.0,68046.0,0.34697]
[1722041614421,0.18926137,68047.0,68046.0,0.34697]
[1722041614684,0.36797211,68047.0,68046.0,0.34697]
[1722041614973,1.4716068,68047.0,68046.0,0.34697]
[1722041615394,1.67059862,68047.0,68046.0,0.34697]
[1722041615558,1.67059862,68047.0,68046.0,0.33297]
[1722041615559,1.57381659,68047.0,68046.0,0.33297]
[1722041615785,1.57381659,68047.0,68046.0,0.31897]
[1722041615927,1.57381659,68047.0,68046.0,0.32997]
[1722041616134,1.62038249,68047.0,68046.0,0.33997]
[1722041616490,1.62038249,68047.0,68046.0,0.32897]
[1722041616491,1.4716068,68047.0,68046.0,0.32897]
[1722041617133,1.5564068,68047.0,68046.0,0.31897]
[1722041617527,1.57947084,68047.0,68046.0,0.31997]
[1722041617760,1.58019084,68047.0,68046.0,0.31997]
[1722041618684,1.58019084,68047.0,68046.0,0.32097]
[1722041618685,1.58419084,68047.0,68046.0,0.32097]
[1722041620277,1.71625801,68047.0,68046.0,0.32097]
[1722041621035,1.58419084,68047.0,68046.0,0.32097]
[1722041621214,1.58415406,68047.0,68046.0,0.32097]
[1722041624243,1.51512441,68047.0,68046.0,0.32097]
[1722041625255,1.56123805,68047.0,68046.0,0.32097]
[1722041625478,1.49206037,68047.0,68046.0,0.32097]
[1722041628140,1.56116282,68047.0,68046.0,0.32097]
[1722041628317,1.49206037,68047.0,68046.0,0.32097]
[1722041628777,1.56116282,68047.0,68046.0,0.32097]
[1722041629215,1.58422686,68047.0,68046.0,0.32097]
[1722041630085,1.56116282,68047.0,68046.0,0.32097]
[1722041630397,1.56116057,68047.0,68046.0,0.32097]
[1722041631513,1.63418767,68047.0,68046.0,0.32097]
[1722041631713,1.92810167,68047.0,68046.0,0.32097]
[1722041632584,1.85507457,68047.0,68046.0,0.32097]
[1722041633225,1.87813874,68047.0,68046.0,0.32097]
[1722041633370,1.85507457,68047.0,68046.0,0.32097]
[1722041633583,1.8547719,68047.0,68046.0,0.32097]
[1722041636611,1.87783602,68047.0,68046.0,0.32097]
[1722041638077,1.8547719,68047.0,68046.0,0.32097]
[1722041640577,1.85485998,68047.0,68046.0,0.32097]
[1722041642489,2.44877398,68047.0,68046.0,0.32097]
[1722041642688,2.55072814,68047.0,68046.0,0.32097]
[1722041643099,2.25689397,68047.0,68046.0,0.32097]
[1722041643293,2.1387274,68047.0,68046.0,0.32097]
[1722041643557,2.00689397,68047.0,68046.0,0.32097]
[1722041644852,2.02995882,68047.0,68046.0,0.32097]
[1722041645239,2.00689397,68047.0,68046.0,0.32097]
[1722041646314,1.9049362,68047.0,68046.0,0.32097]
[1722041646627,2.00607846,68047.0,68046.0,0.32097]
[1722041648491,2.02914336,68047.0,68046.0,0.32097]
[1722041649930,2.0290454,68047.0,68046.0,0.32097]
[1722041650149,2.16096304,68047.0,68046.0,0.32097]
[1722041651021,1.66994904,68047.0,68046.0,0.32097]
[1722041651226,1.5450314,68047.0,68046.0,0.32097]
[1722041653174,1.37502527,68047.0,68046.0,0.32097]
[1722041653354,1.54423477,68047.0,68046.0,0.32097]
[1722041653507,1.5368649,68047.0,68046.0,0.32097]
[1722041655170,1.66878254,68047.0,68046.0,0.32097]
[1722041656242,1.5368649,68047.0,68046.0,0.32097]
[1722041656641,1.5369933,68047.0,68046.0,0.32097]
[1722041656926,1.5139284,68047.0,68046.0,0.32097]
[1722041659861,1.3445905,68047.0,68046.0,0.32097]
[1722041660061,1.53672851,68047.0,68046.0,0.32097]
[1722041661405,1.51366459,68047.0,68046.0,0.32097]
[1722041662784,1.56158322,68047.0,68046.0,0.32097]
[1722041662960,1.56157296,68047.0,68046.0,0.32097]
[1722041663391,1.5615369,68047.0,68046.0,0.32097]
[1722041663616,1.41255429,68047.0,68046.0,0.32097]
[1722041664026,1.49295429,68047.0,68046.0,0.32097]
[1722041664302,1.78679687,68047.0,68046.0,0.32097]
[1722041664504,1.63782256,68047.0,68046.0,0.32097]
[1722041665002,1.59257011,68047.0,68046.0,0.32097]
[1722041666670,1.42498024,68047.0,68046.0,0.32097]
[1722041666873,1.59115066,68047.0,68046.0,0.32097]
[1722041667993,1.61421479,68047.0,68046.0,0.32097]
[1722041668536,1.59115066,68047.0,68046.0,0.32097]
[1722041669402,2.08532423,68047.0,68046.0,0.32097]
[1722041669612,2.39732423,68047.0,68046.0,0.32097]
[1722041670119,2.39742513,68047.0,68046.0,0.32097]
[1722041672168,2.42048962,68047.0,68046.0,0.32097]
[1722041673116,2.39742513,68047.0,68046.0,0.32097]
[1722041673944,2.3467575,68047.0,68046.0,0.32097]
[1722041674783,2.14742513,68047.0,68046.0,0.32097]
[1722041676321,2.08542513,68047.0,68046.0,0.32097]
[1722041676652,1.91915381,68047.0,68046.0,0.32097]
[1722041676854,2.08622673,68047.0,68046.0,0.32097]
[1722041677800,2.2845591,68047.0,68046.0,0.32097]
[1722041678003,2.2855591,68047.0,68046.0,0.32097]
[1722041678207,2.2845591,68047.0,68046.0,0.32097]
[1722041678406,2.33622673,68047.0,68046.0,0.32097]
[1722041680274,2.33610449,68047.0,68046.0,0.32097]
[1722041680383,2.28543686,68047.0,68046.0,0.32097]
[1722041680790,2.33610449,68047.0,68046.0,0.32097]
[1722041681074,2.30850224,68047.0,68046.0,0.32097]
[1722041681514,2.35916987,68047.0,68046.0,0.32097]
[1722041681719,2.33610449,68047.0,68046.0,0.32097]
[1722041683590,2.33566561,68047.0,68046.0,0.32097]
[1722041684730,2.35873053,68047.0,68046.0,0.32097]
[1722041685913,2.33566561,68047.0,68046.0,0.32097]
[1722041686349,2.18540604,68047.0,68046.0,0.32097]
[1722041686558,1.93540604,68047.0,68046.0,0.32097]
[1722041686970,1.93587651,68047.0,68046.0,0.32097]
[1722041688659,1.93575435,68047.0,68046.0,0.32097]
[1722041690325,2.18575435,68047.0,68046.0,0.32097]
[1722041690613,2.1857686,68047.0,68046.0,0.32097]
[1722041690913,2.18576843,68047.0,68046.0,0.32097]
[1722041691327,1.93576843,68047.0,68046.0,0.32097]
[1722041693477,1.95883335,68047.0,68046.0,0.32097]
[1722041693697,2.15816572,68047.0,68046.0,0.32097]
[1722041693934,2.1351008,68047.0,68046.0,0.32097]
[1722041694139,2.13517274,68047.0,68046.0,0.32097]
[1722041694320,2.13517328,68047.0,68046.0,0.32097]
[1722041694648,2.18584091,68047.0,68046.0,0.32097]
[1722041695061,2.20890398,68047.0,68046.0,0.32097]
[1722041696624,2.15723635,68047.0,68046.0,0.32097]
[1722041696830,1.79370398,68047.0,68046.0,0.32097]
[1722041697046,1.79370398,68047.0,68046.0,0.38637]
[1722041697047,1.87850398,68047.0,68046.0,0.38637]
[1722041697171,1.73462223,68047.0,68046.0,0.38637]
[1722041697377,1.90140044,68047.0,68046.0,0.38637]
[1722041697589,1.90173715,68047.0,68046.0,0.38637]
[1722041698247,1.87867223,68047.0,68046.0,0.38637]
[1722041700450,1.71189402,68047.0,68046.0,0.38637]
[1722041700657,1.87886404,68047.0,68046.0,0.38637]
[1722041702973,1.90192896,68047.0,68046.0,0.38637]
[1722041703162,1.87894435,68047.0,68046.0,0.38637]
[1722041703967,2.07827672,68047.0,68046.0,0.38637]
[1722041704172,1.87894435,68047.0,68046.0,0.38637]
[1722041706139,1.90200927,68047.0,68046.0,0.38637]
[1722041706480,1.90176505,68047.0,68046.0,0.38637]
[1722041707537,1.47305105,68047.0,68046.0,0.46917]
[1722041707758,1.16398016,68047.0,68046.0,0.516087]
[1722041707980,1.14091709,68047.0,68046.0,0.46917]
[1722041708132,1.25023643,68047.0,68046.0,0.46917]
[1722041709206,1.11785217,68047.0,68046.0,0.46917]
[1722041709878,1.11719965,68047.0,68046.0,0.46917]
[1722041710121,1.11719965,68047.0,68046.0,0.46817]
[1722041710512,1.11319965,68047.0,68046.0,0.46717]
[1722041713178,1.04700295,68047.0,68046.0,0.46717]
[1722041713458,1.1132463,68047.0,68046.0,0.46717]
[1722041713865,1.11257867,68047.0,68046.0,0.46717]
[1722041715094,1.1132463,68047.0,68046.0,0.46717]
[1722041715902,1.26861954,68047.0,68046.0,0.46717]
[1722041716105,1.1132463,68047.0,68046.0,0.46717]
[1722041716510,1.11280773,68047.0,68046.0,0.46717]
[1722041716714,1.11280783,68047.0,68046.0,0.46717]
[1722041717858,1.40672183,68047.0,68046.0,0.46717]
[1722041718047,1.11280783,68047.0,68046.0,0.46717]
[1722041718916,1.40672183,68047.0,68046.0,0.46717]
[1722041719313,1.4050542,68047.0,68046.0,0.46717]
[1722041719562,1.42811804,68047.0,68046.0,0.46717]
[1722041720533,1.42811804,68047.0,68046.0,0.38437]
[1722041720534,1.42978567,68047.0,68046.0,0.38437]
[1722041720806,1.51226651,68047.0,68046.0,0.31897]
[1722041721376,1.48692183,68047.0,68046.0,0.31897]
[1722041722058,1.48792183,68047.0,68046.0,0.31897]
[1722041722228,1.40772183,68047.0,68046.0,0.31897]
[1722041723006,1.40672183,68047.0,68046.0,0.31897]
[1722041723209,1.40642172,68047.0,68046.0,0.31897]
[1722041723403,1.40942172,68047.0,68046.0,0.31997]
[1722041723863,1.51268581,68047.0,68046.0,0.31997]
[1722041724071,1.80659981,68047.0,68046.0,0.31997]
[1722041724272,1.88212455,68047.0,68046.0,0.31997]
[1722041726006,1.58821055,68047.0,68046.0,0.31997]
[1722041726502,1.42411695,68047.0,68046.0,0.31997]
[1722041726716,1.88156327,68047.0,68046.0,0.31997]
[1722041727046,2.03035272,68047.0,68046.0,0.31997]
[1722041727603,2.05341764,68047.0,68046.0,0.31997]
[1722041727843,2.03035272,68047.0,68046.0,0.31997]
[1722041728438,1.73643872,68047.0,68046.0,0.31997]
[1722041729147,2.03035272,68047.0,68046.0,0.31997]
[1722041729881,1.86615277,68047.0,68046.0,0.31997]
[1722041730067,2.02894313,68047.0,68046.0,0.31997]
[1722041730315,2.03061076,68047.0,68046.0,0.31997]
[1722041731161,2.05367577,68047.0,68046.0,0.31997]
[1722041732659,2.10367577,68047.0,68046.0,0.31997]
[1722041732829,2.25393534,68047.0,68046.0,0.31997]
[1722041733413,2.25387025,68047.0,68046.0,0.31997]
[1722041733796,2.10361068,68047.0,68046.0,0.31997]
[1722041734419,2.29322059,68047.0,68046.0,0.31997]
[1722041734965,2.58713459,68047.0,68046.0,0.31997]
[1722041735329,2.29322059,68047.0,68046.0,0.31997]
[1722041735535,2.56406958,68047.0,68046.0,0.31997]
[1722041735741,2.59109487,68047.0,68046.0,0.31997]
[1722041736550,2.590008,68047.0,68046.0,0.31997]
[1722041737037,2.652308,68047.0,68046.0,0.31997]
[1722041737380,2.652308,68047.0,68046.0,0.25748228]
[1722041737574,2.64928963,68040.0,68039.0,0.000924]
[1722041737775,2.64928963,68040.0,68038.0,0.000924]
[1722041737776,1.20516963,68039.0,68038.0,0.000924]
[1722041737985,2.15013571,68039.0,68038.0,0.000924]
[1722041738211,2.46708471,68039.0,68038.0,0.000924]
[1722041738413,1.87463163,68029.0,68028.0,0.0015542]
[1722041738634,2.56415107,68029.0,68028.0,0.0015542]
[1722041738837,2.66542057,68029.0,68028.0,0.0015542]
[1722041739074,2.75385057,68029.0,68028.0,0.0015542]
[1722041739276,1.32472563,68024.0,68023.0,0.0015542]
[1722041739455,1.32472563,68024.0,68009.0,0.45170272]
[1722041739456,1.28675463,68019.0,68018.0,0.064124]
[1722041739621,2.47999937,68019.0,68018.0,0.000924]
[1722041739820,2.32999937,68019.0,68018.0,0.000924]
[1722041740213,2.22933174,68019.0,68018.0,0.000924]
[1722041740353,2.02999937,68019.0,68018.0,0.000924]
[1722041740547,2.1157178,68019.0,68018.0,0.000924]
[1722041740751,2.1157178,68019.0,68018.0,0.001924]
[1722041740752,2.1177178,68019.0,68018.0,0.001924]
[1722041740945,2.0677178,68019.0,68018.0,0.001924]
[1722041741126,2.16797362,68019.0,68018.0,0.065124]
[1722041741328,2.16597362,68019.0,68018.0,0.064124]
[1722041741539,2.16897362,68019.0,68018.0,0.064124]
[1722041742215,2.23633174,68019.0,68018.0,0.064124]
[1722041742639,1.90219937,68019.0,68018.0,0.064124]
[1722041742863,1.92251495,68019.0,68018.0,0.064124]
[1722041743002,1.98565544,68019.0,68018.0,0.064124]
[1722041745074,2.03565544,68019.0,68018.0,0.064124]
[1722041745205,2.1454851,68019.0,68018.0,0.064124]
[1722041745446,2.0954851,68019.0,68018.0,0.064124]
[1722041745890,2.0070551,68019.0,68018.0,0.064124]
[1722041746121,1.92029865,68019.0,68018.0,0.064124]
[1722041746318,2.03012838,68019.0,68018.0,0.064124]
[1722041746720,2.15731474,68019.0,68018.0,0.064124]
[1722041746919,2.00705517,68019.0,68018.0,0.064124]
[1722041747125,1.89722544,68019.0,68018.0,0.064124]
[1722041747328,1.90585179,68019.0,68018.0,0.064124]
[1722041748302,1.99366812,68019.0,68018.0,0.064124]
[1722041748482,1.99300049,68019.0,68018.0,0.064124]
[1722041749024,1.99366812,68019.0,68018.0,0.064124]
[1722041749736,1.99364491,68019.0,68018.0,0.064124]
[1722041750109,2.01671829,68019.0,68018.0,0.064124]
[1722041750319,1.92892221,68019.0,68018.0,0.064124]
[1722041750749,1.86578468,68019.0,68018.0,0.064124]
[1722041750953,1.92897555,68019.0,68018.0,0.064124]
[1722041751108,1.90590217,68019.0,68018.0,0.064124]
[1722041751318,2.08312051,68019.0,68018.0,0.064124]
[1722041751906,1.97172942,68019.0,68018.0,0.064124]
[1722041752293,1.90590217,68019.0,68018.0,0.064124]
[1722041753073,1.90587529,68019.0,68018.0,0.064124]
[1722041753276,1.52704029,68019.0,68018.0,0.064124]
[1722041753452,1.91184029,68019.0,68018.0,0.064124]
[1722041753868,1.61184029,68019.0,68018.0,0.139724]
[1722041754502,1.63491367,68019.0,68018.0,0.139724]
[1722041755729,1.61184029,68019.0,68018.0,0.139724]
[1722041756377,1.5486763,68019.0,68018.0,0.139724]
[1722041756509,1.61266809,68019.0,68018.0,0.139724]
[1722041758012,1.67161109,68019.0,68018.0,0.139724]
[1722041758565,0.33468909,68019.0,68018.0,0.139724]
[1722041758782,0.18514359,68019.0,68018.0,0.1536964]
[1722041759056,0.18514359,68019.0,68018.0,0.139724]
[1722041759266,0.16140332,68019.0,68018.0,0.286743]
[1722041759671,0.15807095,68019.0,68018.0,0.286743]
[1722041759821,0.16107095,68019.0,68018.0,0.286743]
[1722041760022,0.28007095,68019.0,68018.0,0.139724]
[1722041760224,0.28007095,68019.0,68018.0,0.147724]
[1722041760225,0.28107095,68019.0,68018.0,0.147724]
[1722041760411,0.27807095,68019.0,68018.0,0.147724]
[1722041761268,0.27707095,68019.0,68018.0,0.139724]
[1722041761438,0.27707095,68019.0,68018.0,0.286743]
[1722041761657,0.27707095,68019.0,68018.0,0.294743]
[1722041762245,0.27707095,68019.0,68018.0,0.286743]
[1722041762450,0.30014174,68019.0,68018.0,0.139724]
[1722041763616,0.27640332,68019.0,68018.0,0.139724]
[1722041763778,0.27707095,68019.0,68018.0,0.139724]
[1722041764127,0.25407095,68019.0,68018.0,0.286743]
[1722041764862,0.25340332,68019.0,68018.0,0.580782]
[1722041765272,0.25407095,68019.0,68018.0,0.580782]
[1722041766396,0.25407095,68019.0,68018.0,0.286743]
[1722041766612,0.25440332,68019.0,68018.0,0.286743]
[1722041767038,0.27747407,68019.0,68018.0,0.286743]
[1722041767237,0.25440332,68019.0,68018.0,0.286743]
[1722041767413,0.25440332,68019.0,68018.0,0.139724]
[1722041767617,0.25340332,68019.0,68018.0,0.139724]
[1722041767816,0.25507095,68019.0,68018.0,0.139724]
[1722041770045,0.27814174,68019.0,68018.0,0.139724]
[1722041773230,0.17647411,68019.0,68018.0,0.874821]
[1722041773637,0.17647411,68019.0,68018.0,1.25366]
[1722041773638,0.11753111,68019.0,68018.0,1.25366]
[1722041773799,0.02307079,68019.0,68018.0,1.25366]
[1722041774456,0.00084,68023.0,68022.0,0.882655]
[1722041775488,0.00084,68023.0,68022.0,1.176677]
[1722041777715,0.02390835,68023.0,68022.0,1.176677]
[1722041779082,0.02390835,68023.0,68022.0,0.882655]
[1722041779284,0.02457598,68023.0,68022.0,0.882655]
[1722041779523,0.00084,68023.0,68022.0,0.882655]
[1722041780738,0.00150763,68023.0,68022.0,0.882655]
[1722041781375,0.00150763,68023.0,68022.0,0.1476]
[1722041782009,0.00306182,68023.0,68022.0,0.1476]
[1722041782435,0.0245759,68023.0,68022.0,0.1476]
[1722041782624,0.0245759,68023.0,68022.0,0.294611]
[1722041782625,0.02595468,68023.0,68022.0,0.294611]
[1722041782826,0.0245759,68023.0,68022.0,0.294611]
[1722041783023,0.02613009,68023.0,68022.0,0.294611]
[1722041783231,0.00150763,68023.0,68022.0,0.1476]
[1722041783473,0.00279197,68023.0,68022.0,0.1476]
[1722041783696,0.00150763,68023.0,68022.0,0.294611]
[1722041783856,0.00306182,68023.0,68022.0,0.1476]
[1722041784177,0.08797579,68023.0,68022.0,0.1476]
[1722041784389,0.00150763,68023.0,68022.0,0.1476]
[1722041786044,0.00406182,68023.0,68022.0,0.1476]
[1722041786252,0.00306182,68023.0,68022.0,0.1476]
[1722041787602,0.00406182,68023.0,68022.0,0.1476]
[1722041787807,0.02713081,68023.0,68022.0,0.1476]
[1722041788242,0.00406182,68023.0,68022.0,0.1476]
[1722041788846,0.00306182,68023.0,68022.0,0.1476]
[1722041788972,0.00306182,68023.0,68022.0,0.294611]
[1722041789173,0.00150763,68023.0,68022.0,0.588633]
[1722041789400,0.00150763,68023.0,68022.0,0.294611]
[1722041789784,0.00246514,68023.0,68022.0,0.294611]
[1722041790610,0.00346514,68023.0,68022.0,0.1476]
[1722041790836,0.00150763,68023.0,68022.0,0.1476]
[1722041791189,0.02613064,68023.0,68022.0,0.1476]
[1722041791360,0.02713064,68023.0,68022.0,0.1476]
[1722041791581,0.02457645,68023.0,68022.0,0.1476]
[1722041791992,0.00150763,68023.0,68022.0,0.1476]
[1722041792200,0.00306182,68023.0,68022.0,0.1476]
[1722041793610,0.00150763,68023.0,68022.0,0.1476]
[1722041793928,0.00263308,68023.0,68022.0,0.294611]
[1722041794132,0.02670207,68023.0,68022.0,0.1476]
[1722041794251,0.02457662,68023.0,68022.0,0.1476]
[1722041794457,0.02457662,68023.0,68022.0,0.294611]
[1722041794671,0.0254134,68023.0,68022.0,0.294611]
[1722041794878,0.02457662,68023.0,68022.0,0.294611]
[1722041795533,0.02579416,68023.0,68022.0,0.294611]
[1722041795721,0.02457662,68023.0,68022.0,0.294611]
[1722041795935,0.00150763,68023.0,68022.0,0.1476]
[1722041796079,0.0025147,68023.0,68022.0,0.1476]
[1722041796520,0.00150763,68023.0,68022.0,0.1476]
[1722041796777,0.00306182,68023.0,68022.0,0.1476]
[1722041797417,0.00150763,68023.0,68022.0,0.1476]
[1722041797611,0.00302874,68023.0,68022.0,0.1476]
[1722041798658,0.00302874,68023.0,68022.0,0.294611]
[1722041798857,0.00302874,68023.0,68022.0,0.588633]
[1722041799011,0.00302874,68023.0,68022.0,0.294611]
[1722041800047,0.00150763,68023.0,68022.0,0.1476]
[1722041800250,0.00289307,68023.0,68022.0,0.1476]
[1722041800488,0.02596189,68023.0,68022.0,0.148524]
[1722041800880,0.00289307,68023.0,68022.0,0.148524]
[1722041803046,0.02596189,68023.0,68022.0,0.148524]
[1722041803403,0.02457645,68023.0,68022.0,0.295535]
[1722041803617,0.00306182,68023.0,68022.0,0.148524]
[1722041804222,0.00406182,68023.0,68022.0,0.148524]
[1722041804518,0.13304605,68023.0,68022.0,0.148524]
[1722041804762,0.13149186,68023.0,68022.0,0.148524]
[1722041805295,0.0874216,68023.0,68022.0,0.148524]
[1722041805516,0.08851052,68023.0,68022.0,0.148524]
[1722041805964,0.0874216,68023.0,68022.0,0.148524]
[1722041806191,0.08838358,68023.0,68022.0,0.148524]
[1722041806547,0.11145253,68023.0,68022.0,0.148524]
[1722041806910,0.10949055,68023.0,68022.0,0.148524]
[1722041807328,0.15356494,68023.0,68022.0,0.148524]
[1722041807529,0.11047959,68023.0,68022.0,0.148524]
[1722041807666,0.10949055,68023.0,68022.0,0.148524]
[1722041807870,0.15356544,68023.0,68022.0,0.148524]
[1722041808066,0.13149649,68023.0,68022.0,0.148524]
[1722041808467,0.0874216,68023.0,68022.0,0.148524]
[1722041808669,0.08839159,68023.0,68022.0,0.148524]
[1722041808873,0.0874216,68023.0,68022.0,0.148524]
[1722041809075,0.08887457,68023.0,68022.0,0.148524]
[1722041809268,0.0874216,68023.0,68022.0,0.148524]
[1722041809478,0.08868195,68023.0,68022.0,0.148524]
[1722041809652,0.0874216,68023.0,68022.0,0.148524]
[1722041810491,0.15448993,68023.0,68022.0,0.148524]
[1722041810725,0.15448993,68023.0,68022.0,0.000924]
[1722041810726,0.59188857,68023.0,68022.0,0.000924]
[1722041810903,0.40806747,68023.0,68022.0,0.000924]
[1722041811131,0.29786906,68023.0,68022.0,0.000924]
[1722041811292,0.29942325,68023.0,68022.0,0.000924]
[1722041813640,0.91025833,68023.0,68022.0,0.000924]
[1722041813828,1.13876463,68023.0,68022.0,0.000924]
[1722041814022,1.43278263,68023.0,68022.0,0.000924]
[1722041814422,1.56502303,68023.0,68022.0,0.000924]
[1722041815349,1.28252306,68023.0,68022.0,0.000924]
[1722041815571,1.41472689,68023.0,68022.0,0.000924]
[1722041816138,1.43779668,68023.0,68022.0,0.000924]
[1722041816346,1.43780417,68023.0,68022.0,0.000924]
[1722041816751,1.30559285,68023.0,68022.0,0.000924]
[1722041817378,1.28252306,68023.0,68022.0,0.000924]
[1722041818414,1.34415543,68023.0,68022.0,0.000924]
[1722041818669,1.34482306,68023.0,68022.0,0.000924]
[1722041818872,1.34592736,68023.0,68022.0,0.000924]
[1722041819020,1.34415543,68023.0,68022.0,0.000924]
[1722041819224,1.35176849,68023.0,68022.0,0.000924]
[1722041819428,1.28949245,68023.0,68022.0,0.000924]
[1722041819682,1.35497414,68023.0,68022.0,0.000924]
[1722041819820,1.35381172,68023.0,68022.0,0.000924]
[1722041821067,1.50407129,68023.0,68022.0,0.000924]
[1722041821270,1.89808929,68023.0,68022.0,0.000924]
[1722041821446,1.89642166,68023.0,68022.0,0.000924]
[1722041821648,1.89808929,68023.0,68022.0,0.000924]
[1722041822048,1.92019124,68023.0,68022.0,0.000924]
[1722041822271,1.89778681,68023.0,68022.0,0.000924]
[1722041822829,1.74752724,68023.0,68022.0,0.000924]
[1722041823030,1.83232724,68023.0,68022.0,0.000924]
[1722041823554,1.83165961,68023.0,68022.0,0.000924]
[1722041823749,1.83325974,68023.0,68022.0,0.000924]
[1722041824108,1.83232724,68023.0,68022.0,0.000924]
[1722041825225,1.79188769,68023.0,68022.0,0.000924]
[1722041825367,1.85592008,68023.0,68022.0,0.000924]
[1722041825574,1.98799843,68023.0,68022.0,0.000924]
[1722041826039,1.85592008,68023.0,68022.0,0.000924]
[1722041826630,1.79362008,68023.0,68022.0,0.000924]
[1722041826834,1.39180208,68023.0,68022.0,0.000924]
[1722041827038,1.31220208,68023.0,68022.0,0.000924]
[1722041827339,1.31153445,68023.0,68022.0,0.000924]
[1722041827541,1.31220208,68023.0,68022.0,0.000924]
[1722041828144,1.33353445,68023.0,68022.0,0.000924]
[1722041828583,1.26950206,68023.0,68022.0,0.000924]
[1722041828776,1.33366655,68023.0,68022.0,0.000924]
[1722041829125,1.31059452,68023.0,68022.0,0.000924]
[1722041829443,1.31226215,68023.0,68022.0,0.000924]
[1722041830541,1.31159452,68023.0,68022.0,0.000924]
[1722041831990,1.24743003,68023.0,68022.0,0.000924]
[1722041832282,1.31147524,68023.0,68022.0,0.000924]
[1722041832488,1.31214287,68023.0,68022.0,0.000924]
[1722041832686,1.33521402,68023.0,68022.0,0.000924]
[1722041832884,1.42001402,68023.0,68022.0,0.000924]
[1722041833652,1.39694287,68023.0,68022.0,0.000924]
[1722041834489,1.42001133,68023.0,68022.0,0.000924]
[1722041835478,1.42054877,68023.0,68022.0,0.000924]
[1722041836062,1.44361992,68023.0,68022.0,0.000924]
[1722041836896,1.44195229,68023.0,68022.0,0.000924]
[1722041837189,1.41888114,68023.0,68022.0,0.000924]
[1722041837450,1.33508114,68023.0,68022.0,0.000924]
[1722041837669,1.41988114,68023.0,68022.0,0.000924]
[1722041838575,1.42054877,68023.0,68022.0,0.000924]
[1722041838773,1.42063904,68023.0,68022.0,0.000924]
[1722041838977,1.42084096,68023.0,68022.0,0.000924]
[1722041840337,1.4439116,68023.0,68022.0,0.000924]
[1722041841490,1.42084096,68023.0,68022.0,0.000924]
[1722041843980,1.12682296,68023.0,68022.0,0.000924]
[1722041844468,1.23688979,68023.0,68022.0,0.000924]
[1722041844903,1.25968745,68023.0,68022.0,0.000924]
[1722041845595,1.2596867,68023.0,68022.0,0.143924]
[1722041845984,1.23661606,68023.0,68022.0,0.143924]
[1722041847292,1.15181606,68023.0,68022.0,0.143924]
[1722041847661,1.12654923,68023.0,68022.0,0.143924]
[1722041847859,1.23661606,68023.0,68022.0,0.143924]
[1722041848823,1.23659991,68023.0,68022.0,0.143924]
[1722041849053,1.2597121,68023.0,68022.0,0.143924]
[1722041849252,1.23664154,68023.0,68022.0,0.064624]
[1722041850402,1.12657471,68023.0,68022.0,0.064624]
[1722041851259,1.23674081,68023.0,68022.0,0.064624]
[1722041851463,1.12657471,68023.0,68022.0,0.064624]
[1722041852195,1.12665863,68023.0,68022.0,0.064624]
[1722041852553,1.1497294,68023.0,68022.0,0.064624]
[1722041855368,0.8557114,68023.0,68022.0,0.064624]
[1722041855570,0.79100089,68023.0,68022.0,0.064624]
[1722041855829,0.85561857,68023.0,68022.0,0.064624]
[1722041859049,0.79100089,68023.0,68022.0,0.064624]
[1722041859240,0.85577315,68023.0,68022.0,0.064624]
[1722041859653,0.84716009,68023.0,68022.0,0.064624]
[1722041862393,1.05333506,68023.0,68022.0,0.064624]
[1722041862597,1.11807752,68023.0,68022.0,0.064624]
[1722041863653,1.11462683,68023.0,68022.0,0.064624]